fUSD/lending_fUSD_20240513
["ID","MTS","AMOUNT","RATE_DAILY","PERIOD"]
[326915834,1715571050528,-508.20315966,0.00012978,2]
[326915835,1715571050539,-500.0,0.00012978,2]
[326915836,1715571050549,-500.0,0.00012978,2]
[326915837,1715571050560,-500.0,0.00012978,2]
[326915838,1715571050570,-500.0,0.00012978,2]
[326915839,1715571050580,-500.0,0.00012978,2]
[326915840,1715571050591,-500.0,0.00012978,2]
[326915841,1715571050602,-588.20925335,0.00012978,2]
[326915842,1715571050612,-626.16601019,0.00012978,2]
[326915843,1715571050623,-505.15346659,0.00012978,2]
[326915844,1715571050634,-261.68512361,0.00012978,2]
[326915845,1715571050646,-500.0,0.00012978,2]
[326915846,1715571050657,-506.85968848,0.00012978,2]
[326915847,1715571050667,-503.57729469,0.00012978,2]
[326915848,1715571050678,-500.0,0.00012978,2]
[326915849,1715571050690,-225.85619946,0.00012978,2]
[326915850,1715571050700,-592.15949503,0.00012978,2]
[326915851,1715571050711,-500.0,0.00012978,2]
[326915852,1715571050722,-500.0,0.00012978,2]
[326915853,1715571050732,-349.96275339,0.00012978,2]
[326915854,1715571050742,-500.0,0.00012978,2]
[326915855,1715571050754,-392.37,0.00012978,2]
[326915856,1715571050764,-500.0,0.00012978,2]
[326915857,1715571050775,-500.0,0.00012978,2]
[326915858,1715571050787,-279.443177,0.00012978,2]
[326915859,1715571050798,-500.0,0.00012978,2]
[326915860,1715571050809,-500.0,0.00012978,2]
[326915861,1715571050820,-500.0,0.00012978,2]
[326915862,1715571050830,-588.01043715,0.00012978,2]
[326915863,1715571050841,-235.75471357,0.00012978,2]
[326915864,1715571050852,-4046.0000025,0.00012979,2]
[326915865,1715571050862,-862.7304809,0.00012979,2]
[326915866,1715571050872,-370.56581393,0.00012979,2]
[326915867,1715571050885,-168.4677211,0.00012979,2]
[326915868,1715571050895,-190.59020101,0.00012979,2]
[326915869,1715571050906,-567.69330729,0.00012979,2]
[326915870,1715571050916,-500.0,0.00012979,2]
[326915871,1715571050926,-223.87889462,0.00012979,2]
[326915872,1715571050936,-215.640367,0.00012979,2]
[326915873,1715571050946,-248.49258402,0.00012979,2]
[326915874,1715571050956,-188.19360552,0.00012979,2]
[326915875,1715571050967,-339.92934832,0.00012979,2]
[326915876,1715571050978,-211.69923916,0.00012979,2]
[326915877,1715571050989,-500.0,0.00012979,2]
[326915878,1715571051000,-500.0,0.00012979,2]
[326915879,1715571051011,-348.42735531,0.00012979,2]
[326915880,1715571051023,-220.07,0.00012979,2]
[326915881,1715571051034,-335.75929145,0.00012979,2]
[326915882,1715571051044,-216.81642662,0.00012979,2]
[326915883,1715571051055,-226.7819928,0.00012979,2]
[326915884,1715571051067,-203.83079153,0.00012979,2]
[326915885,1715571051077,-218.62646107,0.00012979,2]
[326915886,1715571051088,-465.90898055,0.00012979,2]
[326915887,1715571051098,-579.9708231,0.00012979,2]
[326915888,1715571051109,-500.0,0.00012979,2]
[326915889,1715571051119,-517.21003152,0.00012979,2]
[326915890,1715571051129,-385.60393586,0.00012979,2]
[326915891,1715571051139,-500.0,0.00012979,2]
[326915892,1715571051150,-500.0,0.00012979,2]
[326915893,1715571051161,-360.54246783,0.00012979,2]
[326915894,1715571051171,-161.28152046,0.00012979,2]
[326915895,1715571051181,-368.43018318,0.00012979,2]
[326915896,1715571051191,-443.02112947,0.00012979,2]
[326915897,1715571051202,-500.0,0.00012979,2]
[326915898,1715571051212,-249.84,0.00012979,2]
[326915899,1715571051223,-33.88998218,0.00012979,2]
[326915900,1715571051277,-601.98113325,0.00012979,2]
[326915901,1715571051287,-500.0,0.00012979,2]
[326915902,1715571051297,-224.68881585,0.00012979,2]
[326915903,1715571051308,-500.0,0.00012979,2]
[326915904,1715571051318,-409.61525363,0.00012979,2]
[326915905,1715571051329,-500.0,0.00012979,2]
[326915906,1715571051339,-426.50814861,0.00012979,2]
[326915907,1715571051350,-500.0,0.00012979,2]
[326915908,1715571051360,-224.49652106,0.00012979,2]
[326915909,1715571051371,-263.36003748,0.00012979,2]
[326915910,1715571051381,-500.0,0.00012979,2]
[326915911,1715571051391,-341.06358964,0.00012979,2]
[326915912,1715571051402,-445.23083359,0.00012979,2]
[326915913,1715571051412,-263.43824148,0.00012979,2]
[326915914,1715571051426,-165.40598962,0.00012979,2]
[326915915,1715571051437,-500.0,0.00012979,2]
[326915916,1715571051447,-436.28719502,0.00012979,2]
[326915917,1715571051458,-500.0,0.00012979,2]
[326915918,1715571051470,-418.54410405,0.00012979,2]
[326915919,1715571051480,-328.62815883,0.00012979,2]
[326915920,1715571051491,-500.0,0.00012979,2]
[326915921,1715571051502,-184.02008416,0.00012979,2]
[326915922,1715571051514,-500.0,0.00012979,2]
[326915923,1715571051525,-293.18579155,0.00012979,2]
[326915924,1715571051535,-500.0,0.00012979,2]
[326915925,1715571051545,-500.0,0.00012979,2]
[326915926,1715571051556,-500.0,0.00012979,2]
[326915927,1715571051566,-290.03063854,0.00012979,2]
[326915928,1715571051577,-500.0,0.00012979,2]
[326915929,1715571051588,-500.0,0.00012979,2]
[326915930,1715571051598,-226.74183121,0.00012979,2]
[326915931,1715571051610,-500.0,0.00012979,2]
[326915932,1715571051620,-500.0,0.00012979,2]
[326915933,1715571051631,-375.74436138,0.00012979,2]
[326915934,1715571051641,-575.67326015,0.00012979,2]
[326915935,1715571051651,-500.0,0.00012979,2]
[326915936,1715571051662,-534.88251703,0.00012979,2]
[326915937,1715571051672,-500.0,0.00012979,2]
[326915938,1715571051683,-629.65045619,0.00012979,2]
[326915939,1715571051693,-227.90606419,0.00012979,2]
[326915940,1715571051704,-500.0,0.00012979,2]
[326915941,1715571051715,-500.0,0.00012979,2]
[326915942,1715571051725,-553.00750652,0.00012979,2]
[326915943,1715571051735,-500.0,0.00012979,2]
[326915944,1715571051745,-544.42425002,0.00012979,2]
[326915945,1715571051757,-500.0,0.00012979,2]
[326915946,1715571051768,-339.8947867,0.00012979,2]
[326915947,1715571051778,-225.38964468,0.00012979,2]
[326915948,1715571051789,-162.88594904,0.00012979,2]
[326915949,1715571051799,-500.0,0.00012979,2]
[326915950,1715571051810,-500.0,0.00012979,2]
[326915951,1715571051820,-512.0510868,0.00012979,2]
[326915952,1715571051831,-543.15566483,0.00012979,2]
[326915953,1715571051841,-500.0,0.00012979,2]
[326915954,1715571051851,-164.44964249,0.00012979,2]
[326915955,1715571051862,-500.0,0.00012979,2]
[326915956,1715571051872,-305.75115162,0.00012979,2]
[326915957,1715571051882,-524.10753484,0.00012979,2]
[326915958,1715571051893,-500.0,0.00012979,2]
[326915959,1715571051903,-453.91234578,0.00012979,2]
[326915960,1715571051913,-500.0,0.00012979,2]
[326915961,1715571051923,-500.0,0.00012979,2]
[326915962,1715571051933,-260.35639816,0.00012979,2]
[326915963,1715571051944,-500.0,0.00012979,2]
[326915964,1715571051954,-500.0,0.00012979,2]
[326915965,1715571051964,-213.21749124,0.00012979,2]
[326915966,1715571051974,-500.0,0.00012979,2]
[326915967,1715571051984,-500.0,0.00012979,2]
[326915968,1715571051994,-556.11720036,0.00012979,2]
[326915969,1715571052006,-500.0,0.00012979,2]
[326915970,1715571052016,-157.69677313,0.00012979,2]
[326915971,1715571052026,-210.05720208,0.00012979,2]
[326915972,1715571052036,-606.16807794,0.00012979,2]
[326915973,1715571052046,-162.22412716,0.00012979,2]
[326915974,1715571052056,-500.0,0.00012979,2]
[326915975,1715571052066,-304.33364377,0.00012979,2]
[326915976,1715571052076,-628.28959124,0.00012979,2]
[326915977,1715571052086,-505.37511316,0.00012979,2]
[326915978,1715571052096,-415.8610744,0.00012979,2]
[326915979,1715571052106,-306.94051256,0.00012979,2]
[326915980,1715571052116,-500.0,0.00012979,2]
[326915981,1715571052126,-280.93308965,0.00012979,2]
[326915982,1715571052137,-500.0,0.00012979,2]
[326915983,1715571052147,-414.56573548,0.00012979,2]
[326915984,1715571052157,-500.0,0.00012979,2]
[326915985,1715571052167,-462.62819517,0.00012979,2]
[326915986,1715571052176,-500.0,0.00012979,2]
[326915987,1715571052187,-172.01521268,0.00012979,2]
[326915988,1715571052196,-526.72382689,0.00012979,2]
[326915989,1715571052207,-500.0,0.00012979,2]
[326915990,1715571052216,-500.0,0.00012979,2]
[326915991,1715571052225,-370.41739475,0.00012979,2]
[326915992,1715571052234,-500.0,0.00012979,2]
[326915993,1715571052243,-500.0,0.00012979,2]
[326915994,1715571052254,-500.0,0.00012979,2]
[326915995,1715571052264,-151.15571838,0.00012979,2]
[326915996,1715571052274,-164.37844605,0.00012979,2]
[326915997,1715571052283,-500.0,0.00012979,2]
[326915998,1715571052293,-500.0,0.00012979,2]
[326915999,1715571052303,-500.0,0.00012979,2]
[326916000,1715571052312,-500.0,0.00012979,2]
[326916001,1715571052321,-280.73169011,0.00012979,2]
[326916002,1715571052331,-319.76621715,0.00012979,2]
[326916003,1715571052340,-240.98440831,0.00012979,2]
[326916004,1715571052349,-500.0,0.00012979,2]
[326916005,1715571052358,-500.0,0.00012979,2]
[326916006,1715571052367,-550.6,0.00012979,2]
[326916007,1715571052376,-500.0,0.00012979,2]
[326916008,1715571052385,-533.11898389,0.00012979,2]
[326916009,1715571052394,-509.26383452,0.00012979,2]
[326916010,1715571052404,-608.16125749,0.00012979,2]
[326916011,1715571052413,-285.00927637,0.00012979,2]
[326916012,1715571052423,-647.04513348,0.00012979,2]
[326916013,1715571052437,-637.82855905,0.00012979,2]
[326916014,1715571052446,-500.0,0.00012979,2]
[326916015,1715571052455,-500.0,0.00012979,2]
[326916016,1715571052464,-335.05557303,0.00012979,2]
[326916017,1715571052474,-500.0,0.00012979,2]
[326916018,1715571052484,-366.51503502,0.00012979,2]
[326916019,1715571052494,-262.61991564,0.00012979,2]
[326916020,1715571052505,-500.0,0.00012979,2]
[326916021,1715571052515,-209.9850607,0.00012979,2]
[326916022,1715571052526,-500.0,0.00012979,2]
[326916023,1715571052536,-179.14490576,0.00012979,2]
[326916024,1715571052545,-500.0,0.00012979,2]
[326916025,1715571052863,-299.70230741,0.00012979,2]
[326916026,1715571052883,-500.0,0.00012979,2]
[326916027,1715571052898,-626.92359933,0.00012979,2]
[326916028,1715571052907,-500.0,0.00012979,2]
[326916029,1715571052916,-361.49680555,0.00012979,2]
[326916030,1715571052926,-430.63296602,0.00012979,2]
[326916031,1715571052935,-500.0,0.00012979,2]
[326916032,1715571052944,-321.77713836,0.00012979,2]
[326916033,1715571052955,-500.0,0.00012979,2]
[326916034,1715571052964,-458.28049089,0.00012979,2]
[326916035,1715571052974,-440.79824697,0.00012979,2]
[326916036,1715571052983,-500.0,0.00012979,2]
[326916037,1715571052993,-500.0,0.00012979,2]
[326916038,1715571053005,-309.22142923,0.00012979,2]
[326916039,1715571053013,-524.0731257,0.00012979,2]
[326916040,1715571053025,-500.0,0.00012979,2]
[326916041,1715571053035,-500.0,0.00012979,2]
[326916042,1715571053044,-500.0,0.00012979,2]
[326916043,1715571053054,-155.65552123,0.00012979,2]
[326916044,1715571053065,-500.0,0.00012979,2]
[326916045,1715571053077,-500.0,0.00012979,2]
[326916046,1715571053087,-278.92442526,0.00012979,2]
[326916047,1715571053096,-500.0,0.00012979,2]
[326916048,1715571053107,-171.81888018,0.00012979,2]
[326916049,1715571053117,-500.0,0.00012979,2]
[326916050,1715571053126,-385.56383561,0.00012979,2]
[326916051,1715571053135,-500.0,0.00012979,2]
[326916052,1715571053145,-500.0,0.00012979,2]
[326916053,1715571053154,-150.73409983,0.00012979,2]
[326916054,1715571053164,-500.0,0.00012979,2]
[326916055,1715571053174,-247.27488578,0.00012979,2]
[326916056,1715571053184,-500.0,0.00012979,2]
[326916057,1715571053193,-500.0,0.00012979,2]
[326916058,1715571053202,-500.0,0.00012979,2]
[326916059,1715571053211,-481.76141977,0.00012979,2]
[326916060,1715571053220,-151.0,0.00012979,2]
[326916061,1715571053229,-500.0,0.00012979,2]
[326916062,1715571053238,-500.0,0.00012979,2]
[326916063,1715571053248,-486.93978643,0.00012979,2]
[326916064,1715571053258,-151.0,0.00012979,2]
[326916065,1715571053268,-500.0,0.00012979,2]
[326916066,1715571053277,-500.0,0.00012979,2]
[326916067,1715571053286,-500.0,0.00012979,2]
[326916068,1715571053295,-500.0,0.00012979,2]
[326916069,1715571053304,-258.49195169,0.00012979,2]
[326916070,1715571053313,-500.0,0.00012979,2]
[326916071,1715571053322,-500.0,0.00012979,2]
[326916072,1715571053331,-500.0,0.00012979,2]
[326916073,1715571053340,-500.0,0.00012979,2]
[326916074,1715571053349,-500.0,0.00012979,2]
[326916075,1715571053358,-586.67801743,0.00012979,2]
[326916076,1715571053367,-500.0,0.00012979,2]
[326916077,1715571053376,-500.0,0.00012979,2]
[326916078,1715571053384,-500.0,0.00012979,2]
[326916079,1715571053393,-353.95326315,0.00012979,2]
[326916080,1715571053403,-500.0,0.00012979,2]
[326916081,1715571053411,-500.0,0.00012979,2]
[326916082,1715571053421,-151.0,0.00012979,2]
[326916083,1715571053434,-349.13280057,0.00012979,2]
[326916084,1715571053443,-500.0,0.00012979,2]
[326916085,1715571053452,-500.0,0.00012979,2]
[326916086,1715571053461,-500.0,0.00012979,2]
[326916087,1715571053472,-500.0,0.00012979,2]
[326916088,1715571053481,-188.54065622,0.00012979,2]
[326916089,1715571053490,-500.0,0.00012979,2]
[326916090,1715571053501,-500.0,0.00012979,2]
[326916091,1715571053511,-387.182832,0.00012979,2]
[326916092,1715571053520,-500.0,0.00012979,2]
[326916093,1715571053529,-500.0,0.00012979,2]
[326916094,1715571053538,-154.8376697,0.00012979,2]
[326916095,1715571053547,-151.0,0.00012979,2]
[326916096,1715571053556,-210.55379678,0.00012979,2]
[326916097,1715571053566,-500.0,0.00012979,2]
[326916098,1715571053575,-480.04245269,0.00012979,2]
[326916099,1715571053584,-500.0,0.00012979,2]
[326916100,1715571053593,-617.22508209,0.00012979,2]
[326916101,1715571053601,-500.0,0.00012979,2]
[326916102,1715571053611,-246.86549726,0.00012979,2]
[326916103,1715571053620,-500.0,0.00012979,2]
[326916104,1715571053629,-408.36581715,0.00012979,2]
[326916105,1715571053639,-500.0,0.00012979,2]
[326916106,1715571053648,-500.0,0.00012979,2]
[326916107,1715571053657,-500.0,0.00012979,2]
[326916108,1715571053667,-334.05689309,0.00012979,2]
[326916109,1715571053677,-500.0,0.00012979,2]
[326916110,1715571053687,-500.0,0.00012979,2]
[326916111,1715571053696,-265.99636853,0.00012979,2]
[326916112,1715571053705,-316.47659011,0.00012979,2]
[326916113,1715571053715,-500.0,0.00012979,2]
[326916114,1715571053724,-500.0,0.00012979,2]
[326916115,1715571053733,-500.0,0.00012979,2]
[326916116,1715571053743,-297.54747262,0.00012979,2]
[326916117,1715571053753,-500.0,0.00012979,2]
[326916118,1715571053763,-500.0,0.00012979,2]
[326916119,1715571053772,-500.0,0.00012979,2]
[326916120,1715571053781,-462.72062608,0.00012979,2]
[326916121,1715571053791,-154.085002,0.00012979,2]
[326916122,1715571053800,-500.0,0.00012979,2]
[326916123,1715571053809,-588.5150166,0.00012979,2]
[326916124,1715571053819,-500.0,0.00012979,2]
[326916125,1715571053828,-186.21272365,0.00012979,2]
[326916126,1715571053838,-500.0,0.00012979,2]
[326916127,1715571053848,-360.36862022,0.00012979,2]
[326916128,1715571053857,-502.29141592,0.00012979,2]
[326916129,1715571053866,-500.0,0.00012979,2]
[326916130,1715571053875,-575.12952776,0.00012979,2]
[326916131,1715571053884,-151.923216,0.00012979,2]
[326916132,1715571053893,-471.61834462,0.00012979,2]
[326916133,1715571053902,-151.809085,0.00012979,2]
[326916134,1715571053911,-502.31355882,0.00012979,2]
[326916135,1715571053920,-278.0396506,0.00012979,2]
[326916136,1715571053929,-500.0,0.00012979,2]
[326916137,1715571053938,-500.0,0.00012979,2]
[326916138,1715571053947,-407.79889287,0.00012979,2]
[326916139,1715571053956,-205.401938,0.00012979,2]
[326916140,1715571053965,-466.69582841,0.00012979,2]
[326916141,1715571053974,-500.0,0.00012979,2]
[326916142,1715571053983,-645.87966375,0.00012979,2]
[326916143,1715571053991,-260.58749682,0.00012979,2]
[326916144,1715571054002,-151.0,0.00012979,2]
[326916145,1715571054011,-178.056693,0.00012979,2]
[326916146,1715571054020,-208.21742269,0.00012979,2]
[326916147,1715571054029,-437.28263273,0.00012979,2]
[326916148,1715571054039,-635.84589406,0.00012979,2]
[326916149,1715571054048,-500.0,0.00012979,2]
[326916150,1715571054057,-198.17674776,0.00012979,2]
[326916151,1715571054066,-253.75175927,0.00012979,2]
[326916152,1715571054076,-151.0,0.00012979,2]
[326916153,1715571054085,-166.98239982,0.00012979,2]
[326916154,1715571054094,-489.94205407,0.00012979,2]
[326916155,1715571054103,-500.0,0.00012979,2]
[326916156,1715571054112,-217.53000839,0.00012979,2]
[326916157,1715571054122,-621.29793949,0.00012979,2]
[326916158,1715571054131,-151.0,0.00012979,2]
[326916159,1715571054139,-151.0,0.00012979,2]
[326916160,1715571054149,-151.0,0.00012979,2]
[326916161,1715571054158,-303.33537922,0.00012979,2]
[326916162,1715571054167,-168.43694856,0.00012979,2]
[326916163,1715571054176,-639.67,0.00012979,2]
[326916164,1715571054185,-151.0,0.00012979,2]
[326916165,1715571054194,-258.14669587,0.00012979,2]
[326916166,1715571054203,-339.26252402,0.00012979,2]
[326916167,1715571054212,-500.0,0.00012979,2]
[326916168,1715571054221,-500.0,0.00012979,2]
[326916169,1715571054231,-500.0,0.00012979,2]
[326916170,1715571054240,-500.0,0.00012979,2]
[326916171,1715571054249,-500.0,0.00012979,2]
[326916172,1715571054259,-500.0,0.00012979,2]
[326916173,1715571054268,-451.58381099,0.00012979,2]
[326916174,1715571054277,-500.0,0.00012979,2]
[326916175,1715571054286,-199.88,0.00012979,2]
[326916176,1715571054296,-151.58016,0.00012979,2]
[326916177,1715571054305,-500.0,0.00012979,2]
[326916178,1715571054314,-500.0,0.00012979,2]
[326916179,1715571054323,-445.27,0.00012979,2]
[326916180,1715571054333,-500.0,0.00012979,2]
[326916181,1715571054343,-462.85658889,0.00012979,2]
[326916182,1715571054352,-151.0,0.00012979,2]
[326916183,1715571054362,-500.0,0.00012979,2]
[326916184,1715571054372,-413.27914955,0.00012979,2]
[326916185,1715571054382,-381.88583195,0.00012979,2]
[326916186,1715571054391,-151.0,0.00012979,2]
[326916187,1715571054400,-500.0,0.00012979,2]
[326916188,1715571054409,-330.53151431,0.00012979,2]
[326916189,1715571054418,-151.517639,0.00012979,2]
[326916190,1715571054429,-151.632927,0.00012979,2]
[326916191,1715571054440,-500.0,0.00012979,2]
[326916192,1715571054449,-500.0,0.00012979,2]
[326916193,1715571054458,-500.0,0.00012979,2]
[326916194,1715571054467,-189.95,0.00012979,2]
[326916195,1715571054478,-500.0,0.00012979,2]
[326916196,1715571054487,-500.0,0.00012979,2]
[326916197,1715571054496,-500.0,0.00012979,2]
[326916198,1715571054508,-500.0,0.00012979,2]
[326916199,1715571054518,-500.0,0.00012979,2]
[326916200,1715571054527,-500.0,0.00012979,2]
[326916201,1715571054537,-500.0,0.00012979,2]
[326916202,1715571054546,-261.74340132,0.00012979,2]
[326916203,1715571054555,-500.0,0.00012979,2]
[326916204,1715571054564,-500.0,0.00012979,2]
[326916205,1715571054573,-217.87,0.00012979,2]
[326916206,1715571054582,-500.0,0.00012979,2]
[326916207,1715571054591,-500.0,0.00012979,2]
[326916208,1715571054600,-500.0,0.00012979,2]
[326916209,1715571054609,-500.0,0.00012979,2]
[326916210,1715571054618,-151.752511,0.00012979,2]
[326916211,1715571054628,-500.0,0.00012979,2]
[326916212,1715571054637,-500.0,0.00012979,2]
[326916213,1715571054646,-500.0,0.00012979,2]
[326916214,1715571054655,-500.0,0.00012979,2]
[326916215,1715571054664,-500.0,0.00012979,2]
[326916216,1715571054674,-500.0,0.00012979,2]
[326916217,1715571054683,-500.0,0.00012979,2]
[326916218,1715571054692,-500.0,0.00012979,2]
[326916219,1715571054701,-298.78,0.00012979,2]
[326916220,1715571054710,-500.0,0.00012979,2]
[326916221,1715571054719,-315.91526648,0.00012979,2]
[326916222,1715571054728,-500.0,0.00012979,2]
[326916223,1715571054737,-500.0,0.00012979,2]
[326916224,1715571054747,-187.16346119,0.00012979,2]
[326916225,1715571054758,-500.0,0.00012979,2]
[326916226,1715571054767,-500.0,0.00012979,2]
[326916227,1715571054776,-500.0,0.00012979,2]
[326916228,1715571054785,-500.0,0.00012979,2]
[326916229,1715571054795,-342.35223968,0.00012979,2]
[326916230,1715571054804,-151.346588,0.00012979,2]
[326916231,1715571054813,-230.46402375,0.00012979,2]
[326916232,1715571054823,-1204.67333,0.00012979,2]
[326916233,1715571054831,-1204.67333,0.00012979,2]
[326916234,1715571054840,-151.0,0.00012979,2]
[326916235,1715571054851,-1204.67333,0.00012979,2]
[326916236,1715571054860,-283.461731,0.00012979,2]
[326916237,1715571054869,-1204.67333,0.00012979,2]
[326916238,1715571054880,-500.0,0.00012979,2]
[326916239,1715571054889,-500.0,0.00012979,2]
[326916240,1715571054898,-500.0,0.00012979,2]
[326916241,1715571054907,-500.0,0.00012979,2]
[326916242,1715571054916,-500.0,0.00012979,2]
[326916243,1715571054926,-500.0,0.00012979,2]
[326916244,1715571054935,-500.0,0.00012979,2]
[326916245,1715571054945,-660.51,0.00012979,2]
[326916246,1715571054954,-660.51,0.00012979,2]
[326916247,1715571054964,-514.51092537,0.00012979,2]
[326916248,1715571054990,-145.99907463,0.00012979,2]
[326916249,1715571054999,-660.51,0.00012979,2]
[326916250,1715571055010,-660.51,0.00012979,2]
[326916251,1715571055019,-478.435802,0.00012979,2]
[326916252,1715571055028,-478.435802,0.00012979,2]
[326916253,1715571055037,-168.92016224,0.00012979,2]
[326916254,1715571055049,-443.002117,0.00012979,2]
[326916255,1715571055299,-454.57959916,0.00012972,2]
[326916256,1715571055308,-183.09609636,0.00012978,2]
[326916257,1715571055318,-48.58772076,0.00012979,2]
[326916258,1715571055327,-151.0,0.00012979,2]
[326916259,1715571055337,-1521.799029,0.00012979,2]
[326916260,1715571055346,-35.76479538,0.00012979,2]
[326916261,1715571055358,-624.74520462,0.00012979,2]
[326916262,1715571055367,-5.44955472,0.00012979,2]
[326916263,1715571055379,-145.55044528,0.00012979,2]
[326916264,1715571055388,-500.0,0.00012979,2]
[326916265,1715571055398,-1521.799029,0.00012979,2]
[326916266,1715571055407,-660.51,0.00012979,2]
[326916267,1715571055417,-500.0,0.00012979,2]
[326916268,1715571055428,-660.51,0.00012979,2]
[326916269,1715571055440,-335.70842842,0.00012979,2]
[326916270,1715571055450,-660.51,0.00012979,2]
[326916271,1715571055460,-660.51,0.00012979,2]
[326916272,1715571055471,-660.51,0.00012979,2]
[326916273,1715571055480,-624.5885973,0.00012979,2]
[326916274,1715571055492,-35.9214027,0.00012979,2]
[326916275,1715571055502,-479.3285973,0.00012979,2]
[326916276,1715571055548,-150.0,0.00012776,2]
[326916277,1715571055558,-150.0,0.000129,2]
[326916278,1715571055567,-150.0,0.00012902,2]
[326916279,1715571055578,-35.27295591,0.00012979,2]
[326916342,1715572232083,-2127.63,0.00010912,2]
[326916343,1715572232095,-155.0,0.00010929,2]
[326916344,1715572232105,-209.48027963,0.0001093,2]
[326916345,1715572232115,-205.35853037,0.00010933,2]
[326916346,1715572232294,-44.64146963,0.00010933,2]
[326916347,1715572232304,-200.0,0.00010937,2]
[326916348,1715572232313,-87.21095035,0.00010941,2]
[326916349,1715572232418,-1885.94904965,0.00010941,2]
[326916350,1715572232428,-395.35,0.00010947,2]
[326916351,1715572232438,-250.0,0.00010948,2]
[326916353,1715572232447,-600.0,0.00010948,2]
[326916355,1715572232457,-150.0,0.00010966,2]
[326916357,1715572232466,-150.0,0.00010966,2]
[326916359,1715572232480,-7220.01,0.00010967,2]
[326916361,1715572232489,-150.99,0.00010967,2]
[326916363,1715572232498,-175.54,0.00010973,2]
[326916365,1715572232507,-19706.01,0.00010986,2]
[326916367,1715572232516,-598.75,0.00010986,2]
[326916369,1715572232526,-9999.99,0.00010986,2]
[326916371,1715572232535,-150.0,0.00010986,2]
[326916373,1715572232544,-724.63,0.00010987,2]
[326916375,1715572232553,-12621.75,0.00010987,2]
[326916377,1715572232562,-2765.1,0.00010989,2]
[326916379,1715572232571,-159.77384695,0.00011007,2]
[326916381,1715572232581,-752.59,0.00011047,2]
[326916383,1715572232590,-669.82,0.00011115,2]
[326916385,1715572232599,-465.38,0.00011116,2]
[326916387,1715572232608,-172.49,0.00011132,2]
[326916388,1715572232617,-157.43,0.00011175,2]
[326916389,1715572232627,-157.43,0.00011233,2]
[326916390,1715572232636,-151.63,0.00011265,2]
[326916391,1715572232647,-157.43,0.00011292,2]
[326916392,1715572232657,-400.0,0.00011298,2]
[326916393,1715572232667,-157.43,0.0001135,2]
[326916394,1715572232678,-157.43,0.00011408,2]
[326916395,1715572232687,-157.43,0.00011466,2]
[326916396,1715572232696,-157.43,0.00011525,2]
[326916397,1715572232706,-157.43,0.00011583,2]
[326916398,1715572232716,-157.43,0.00011641,2]
[326916399,1715572232729,-157.43,0.00011699,2]
[326916400,1715572232738,-157.43,0.00011758,2]
[326916401,1715572232747,-612.29423713,0.000118,2]
[326916402,1715572232756,-288.49,0.00011858,2]
[326916403,1715572232765,-288.49,0.00011862,2]
[326916404,1715572232774,-4125.93884789,0.00011864,2]
[326916405,1715572232784,-150.99,0.00011864,2]
[326916406,1715572232797,-288.49,0.00011865,2]
[326916407,1715572232806,-288.49,0.00011868,2]
[326916408,1715572232815,-288.49,0.00011871,2]
[326916409,1715572232825,-288.49,0.00011874,2]
[326916410,1715572232835,-288.49,0.00011877,2]
[326916411,1715572232844,-288.49,0.0001188,2]
[326916412,1715572232856,-288.49,0.00011883,2]
[326916413,1715572232865,-288.49,0.00011887,2]